fUSD/lending_fUSD_20240126
["ID","MTS","AMOUNT","RATE_DAILY","PERIOD"]
[312792408,1706236232478,-775.41575123,0.00022998,2]
[312792410,1706236232488,-315.7697341,0.00022998,2]
[312792412,1706236232497,-160255.30270808,0.00022999,2]
[312792414,1706236232506,-305.29721162,0.00022999,2]
[312792416,1706236232515,-1010.4315,0.00022999,2]
[312792418,1706236232524,-314820.91929096,0.00023,2]
[312792422,1706236232548,-576205.40992685,0.00023,2]
[312792424,1706236232559,-159774.40164942,0.00023,2]
[312792425,1706236232570,-23736.57730222,0.00023,2]
[312792426,1706236232581,-7924.14223101,0.00023,2]
[312792427,1706236232593,-484.10191491,0.00023,2]
[312792428,1706236232604,-1186.69011417,0.00023,2]
[312792429,1706236232616,-269.42731393,0.00023,2]
[312792430,1706236232627,-4018.1,0.00023,2]
[312792431,1706236232649,-210515.68838488,0.00023,2]
[312792432,1706236232661,-1129.24535294,0.00023,2]
[312792433,1706236232673,-907.0,0.00023,2]
[312792440,1706236238181,-261.14288916,0.00022077,2]
[312792441,1706236238307,-681.47048948,0.00022077,2]
[312792442,1706236238318,-376.9311522,0.000229,2]
[312792443,1706236238328,-3119.81059398,0.00023,2]
[312792444,1706236238361,-12671.19719152,0.00023,2]
[312792445,1706236238373,-35131.23623797,0.00023,2]
[312792446,1706236238422,-4723.37346589,0.00023,2]
[312792447,1706236238486,-1130.88909021,0.00023,2]
[312792448,1706236238497,-473.3383626,0.00023,2]
[312792449,1706236238509,-2374699.08875874,0.00023,2]
[312792450,1706236238519,-78919.49703552,0.00023,2]
[312792495,1706236244579,-2596.26077757,0.00023,2]
[312792496,1706236244591,-2058.24192669,0.00023,2]
[312792497,1706236244641,-4994.6294913,0.00023,2]
[312792498,1706236244652,-190577.66357178,0.00023,2]
[312792499,1706236244661,-150.0,0.00023,2]
[312792500,1706236244670,-1428.10392785,0.00023,2]
[312792501,1706236244679,-489.47,0.00023014,2]
[312792502,1706236244688,-1376.91,0.00023054,2]
[312792503,1706236244697,-161.28,0.00023616,2]
[312792504,1706236244706,-201.45283623,0.00024,2]
[312792505,1706236244718,-221.77,0.00024061,2]
[312792506,1706236244727,-707.39,0.00024182,2]
[312792507,1706236244738,-167.72,0.00024297,2]
[312792508,1706236244747,-153.87,0.00024324,2]
[312792509,1706236244757,-2495.03350819,0.00024441,2]
[312792510,1706236244766,-161.28,0.00024452,2]
[312792511,1706236244775,-292.61,0.0002456,2]
[312792512,1706236244784,-613.0,0.000246,2]
[312792513,1706236244793,-344.0,0.000246,2]
[312792514,1706236244802,-151.68113173,0.00024614,2]
[312792515,1706236244811,-250.0,0.00024658,2]
[312792516,1706236244821,-150.0,0.00024658,2]
[312792517,1706236244830,-150.0,0.00024658,2]
[312792518,1706236244839,-151.21633467,0.00024658,2]
[312792519,1706236244849,-1376.91,0.00024698,2]
[312792520,1706236244858,-153.87,0.00024746,2]
[312792521,1706236244867,-155.73119273,0.00024945,2]
[312792522,1706236244876,-1586.52836602,0.00025,2]
[312792523,1706236244885,-167.64878724,0.00025,2]
[312792525,1706236244895,-202.3461783,0.00025,2]
[312792526,1706236244905,-935.13066472,0.00025,2]
[312792527,1706236244914,-56688.0945881,0.00025,2]
[312792528,1706236244924,-450.0,0.00025,3]
[312792529,1706236244933,-1290.20270481,0.00025042,2]
[312792530,1706236244943,-153.87,0.00025169,2]
[312792531,1706236244953,-247.66898931,0.00025196,2]
[312792532,1706236244962,-465.03674395,0.00025197,2]
[312792533,1706236244971,-155.42112353,0.00025197,2]
[312792534,1706236244980,-1044.75418482,0.00025197,2]
[312792535,1706236244991,-1145.64112519,0.00025197,2]
[312792536,1706236245000,-6066.00269615,0.00025197,2]
[312792537,1706236245012,-1518.07566965,0.00025197,2]
[312792538,1706236245022,-198.45167663,0.00025197,2]
[312792539,1706236245031,-205.98554129,0.00025197,2]
[312792540,1706236245040,-159.26911243,0.00025197,2]
[312792541,1706236245070,-522.051,0.000229,2]
[312792542,1706236245259,-3810.55264919,0.000229,2]
[312792543,1706236245270,-55.19587643,0.00025197,2]
[312792544,1706236245280,-265.54230604,0.00025197,2]
[312792545,1706236245290,-305.07253524,0.00025197,2]
[312792546,1706236245299,-198.66394479,0.00025197,2]
[312792547,1706236245309,-485.86244953,0.00025197,2]
[312792548,1706236245320,-14436.9883836,0.00025198,2]
[312792549,1706236245330,-237.01129383,0.00025198,2]
[312792550,1706236245340,-2616.38071338,0.00025199,2]
[312792551,1706236245350,-598.6253865,0.00025232,2]
[312792552,1706236245360,-3030.19621843,0.00025249,2]
[312792553,1706236245376,-2184.03380623,0.00025249,2]
[312792555,1706236245388,-1606.26991378,0.00025249,2]
[312792566,1706236247104,-1118.64617838,0.00025249,2]
[312792567,1706236247121,-690.0,0.00025249,2]
[312792568,1706236247222,-1288.17523618,0.00025249,2]
[312792569,1706236247398,-354.80269105,0.00025249,2]
[312792570,1706236247409,-3658.87146499,0.00025249,2]
[312792571,1706236247420,-252.95562264,0.00025249,2]
[312792572,1706236247457,-4045.47738975,0.00025249,2]
[312792574,1706236453379,172.62,0.00024302,10]
[312792575,1706236684301,208.0,0.00020294,2]
[312792577,1706236942826,203.95,0.00021543,2]
[312792579,1706237016009,200.0,0.000302,120]
[312792580,1706237037306,200.0,0.000302,120]
[312792581,1706237068691,300.0,0.000302,120]
[312792582,1706237105277,735.0,0.000302,120]
[312792583,1706237123565,300.0,0.000302,120]
[312792584,1706237139304,500.0,0.000302,120]
[312792586,1706237151276,700.0,0.000302,120]
[312792587,1706237172496,400.0,0.000302,120]
[312792588,1706237193329,153.98,0.000302,120]
[312792589,1706237370590,193.75,0.00021136,2]
[312792590,1706237403989,323.56430644,0.00025249,30]
[312792602,1706237432177,-1000.0,0.00022699,2]
[312792603,1706237432187,-638.16769869,0.000227,2]
[312792604,1706237432196,-153.12540876,0.000227,2]
[312792605,1706237432205,-150.0,0.00022767,2]
[312792606,1706237432214,-204.52799996,0.00022798,2]
[312792607,1706237432223,-721.22930458,0.00022799,2]
[312792608,1706237432340,-278.77069542,0.00022799,2]
[312792609,1706237432349,-150.0,0.00022799,2]
[312792610,1706237432358,-9260.719,0.000228,2]
[312792611,1706237432367,-183.769,0.000228,2]
[312792612,1706237432376,-50984.9285951,0.000228,2]
[312792613,1706237432507,-1532.09010334,0.000228,2]
[312792621,1706237438289,-17054.86300156,0.000228,2]
[312792622,1706237438299,-505.10622901,0.000228,2]
[312792623,1706237438311,-376.56700672,0.000228,2]
[312792624,1706237438505,-367.50507706,0.000228,2]
[312792633,1706237440721,-11976.0,0.000228,2]
[312792634,1706237440733,-2641.75458721,0.000228,2]
[312792635,1706237440743,-482.6414,0.00022899,2]
[312792636,1706237440766,-2995.05368112,0.00022899,2]
[312792637,1706237441391,-312.52609998,0.00022899,2]
[312792638,1706237441403,-2178.24113643,0.00022899,2]
[312792639,1706237441413,-821.63,0.00022995,2]
[312792640,1706237441422,-6537.73990461,0.00022999,2]
[312792641,1706237441430,-687.42,0.00022999,2]
[312792642,1706237441439,-499.99,0.00022999,2]
[312792643,1706237441448,-4956.68,0.00022999,2]
[312792644,1706237441457,-150.0,0.00023,2]
[312792645,1706237441466,-200.0,0.000231,2]
[312792646,1706237441475,-575.56,0.00023185,2]
[312792647,1706237441484,-155.45,0.0002319,2]
[312792648,1706237441496,-376.06,0.00023194,2]
[312792649,1706237441518,-23880.0,0.00023201,2]
[312792653,1706237441707,-150.0,0.00023255,2]
[312792655,1706237441718,-155.19,0.0002326,2]
[312792657,1706237441728,-424.44,0.00023323,2]
[312792659,1706237441737,-2000.0,0.00023373,2]
[312792661,1706237441746,-193.75,0.000234,2]
[312792663,1706237441756,-169.44,0.00023409,2]
[312792665,1706237441765,-250.0,0.00023435,2]
[312792666,1706237441776,-170.77,0.00023578,2]
[312792667,1706237441789,-207.0,0.00023661,2]
[312792668,1706237441798,-1000.0,0.00023903,2]
[312792669,1706237441808,-201.45283623,0.00024,2]
[312792670,1706237441818,-167.74,0.00024297,2]
[312792671,1706237441828,-165.55,0.00024297,2]
[312792672,1706237441837,-155.19,0.00024472,2]
[312792673,1706237441847,-6769.0,0.000245,2]
[312792674,1706237441857,-4332.60364911,0.00024627,2]
[312792675,1706237441867,-821.63,0.00024639,2]
[312792676,1706237441877,-250.0,0.00024658,2]
[312792677,1706237441887,-679.06540673,0.00024796,2]
[312792678,1706237441898,-1503.52687624,0.00025,4]
[312792679,1706237441910,-983.22164338,0.00025,4]
[312792680,1706237441939,-611.15839499,0.00025,4]
[312792681,1706237441950,-935.13066472,0.00025,2]
[312792682,1706237441960,-167.64878724,0.00025,2]
[312792683,1706237441971,-1586.52836602,0.00025,2]
[312792684,1706237441981,-202.3461783,0.00025,2]
[312792685,1706237441992,-223.42228751,0.00025164,4]
[312792686,1706237442002,-500.616153,0.00025248,2]
[312792687,1706237442012,-2092.79917252,0.00025248,2]
[312792688,1706237442031,-3517.84701087,0.00025248,2]
[312792689,1706237442042,-585.83075994,0.00025248,2]
[312792690,1706237442070,-297.52420353,0.00025248,2]
[312792691,1706237442080,-105.67839668,0.00025253,2]
[312792724,1706237443268,-1024.93389214,0.00025253,2]
[312792730,1706237443326,-5043.95895282,0.00025253,2]
[312792731,1706237443338,-1706.2920712,0.00025253,2]
[312792732,1706237443378,-465.15169898,0.00025253,2]
[312792733,1706237443390,-594.15544578,0.00025253,2]
[312792734,1706237443399,-818.86259955,0.00025253,2]
[312792735,1706237443411,-1456.20448539,0.00025253,2]
[312792736,1706237443434,-304.71400008,0.00025253,2]
[312792737,1706237443495,-3454.2550912,0.00025253,2]
[312792738,1706237443506,-1021.43975446,0.00025253,2]
[312792739,1706237443518,-3043.86390913,0.00025253,2]
[312792754,1706237446502,-380.08791673,0.00023687,2]
[312792755,1706237446514,-280.87148946,0.00023687,2]
[312792756,1706237446537,-512.67,0.00023687,2]
[312792757,1706237446577,-1003.23682081,0.00023687,2]
[312792758,1706237446639,-19999.58506004,0.00023687,2]
[312792759,1706237446650,-804.19118802,0.00023687,2]
[312792760,1706237512676,21157.81,0.00021555,2]
[312792765,1706237794524,188.27,0.00021297,2]
[312792772,1706238165088,6037.1655,0.00021782,14]
[312792773,1706238173817,150.0,0.000302,120]
[312792775,1706238239505,178.85,0.00020698,2]
[312792776,1706238306842,1630.33160905,0.00027,7]
[312792778,1706238433941,-4000.0,0.00021864,2]
[312792779,1706238435087,-4000.0,0.00021864,2]
[312792780,1706238435840,-4000.0,0.00021864,2]
[312792781,1706238436506,-4000.0,0.00021864,2]
[312792782,1706238437016,-3030.94116353,0.00021864,2]
[312792783,1706238437038,-969.05883647,0.00021865,2]
[312792784,1706238437631,-2365.46464239,0.00021865,2]
[312792785,1706238437650,-1000.0,0.00021866,2]
[312792786,1706238437669,-150.0,0.00021869,2]
[312792787,1706238437689,-153.84451205,0.00021884,2]
[312792788,1706238437707,-320.7067115,0.00022,2]
[312792789,1706238437737,-9.98413406,0.00022,2]
[312792790,1706238438138,-225.57214176,0.00022,2]
[312792791,1706238438158,-176.58,0.00022,2]
[312792792,1706238438179,-157.21646418,0.00022078,2]
[312792793,1706238438199,-3440.63139406,0.00022131,2]
[312792794,1706238438889,-2210.47860594,0.00022131,2]
[312792795,1706238438910,-200.0,0.00022216,2]
[312792796,1706238438930,-460.45,0.00022253,2]
[312792797,1706238438949,-628.02,0.00022406,2]
[312792798,1706238438972,-207.14,0.0002241,2]
[312792799,1706238438992,-293.91139406,0.00022419,2]
[312792800,1706238439430,-385.06860594,0.00022419,2]
[312792801,1706238439453,-435.81,0.00022495,2]
[312792802,1706238439473,-150.0,0.00022543,2]
[312792803,1706238439493,-250.0,0.00022543,2]
[312792804,1706238439513,-176.58,0.00022548,2]
[312792805,1706238439534,-499.99,0.00022638,2]
[312792806,1706238439555,-207.62,0.00022638,2]
[312792807,1706238439579,-160.12,0.00022711,2]
[312792808,1706238439601,-250.0,0.0002282,2]
[312792809,1706238439624,-1484.81139406,0.000229,2]
[312792810,1706238439968,-2307.45270127,0.000229,2]
[312792811,1706238439991,-1692.54729873,0.000229,2]
[312792812,1706238440649,-4000.0,0.000229,2]
[312792814,1706238441136,-4000.0,0.000229,2]
[312792856,1706238631398,-546.54532813,0.0002277,2]
[312792858,1706238631410,-750.18161684,0.0002277,2]
[312792859,1706238631422,-1107.27305503,0.0002277,2]
[312792860,1706238631433,-319.45790714,0.00022899,2]
[312792861,1706238631445,-215.53115436,0.00022899,2]
[312792862,1706238631454,-300.0,0.00022899,2]
[312792863,1706238631467,-150.0,0.00022899,2]
[312792864,1706238631477,-525.93955197,0.000229,2]
[312792865,1706238631489,-551.95024485,0.000229,2]
[312792866,1706238631507,-904.65909695,0.000229,2]
[312792867,1706238631519,-356.13376006,0.000229,2]
[312792868,1706238631531,-307.51494231,0.000229,2]
[312792869,1706238631542,-7057.61880036,0.000229,2]
[312792870,1706238631553,-4448.13567168,0.000229,2]
[312792871,1706238631564,-4482.96214092,0.000229,2]
[312792872,1706238631575,-3976.98995178,0.000229,2]
[312792873,1706238631586,-585.16436741,0.000229,2]
[312792874,1706238631600,-3747.09115664,0.000229,2]
[312792875,1706238631611,-456.31690773,0.000229,2]
[312792876,1706238631623,-17044.90484149,0.000229,2]
[312792877,1706238631634,-40213.04486712,0.000229,2]
[312792878,1706238631644,-365.7836,0.000229,2]
[312792879,1706238631653,-153.84451204,0.000229,2]
[312792880,1706238631662,-3950.20219512,0.000229,2]
[312792881,1706238631674,-300.0,0.000229,2]
[312792882,1706238631686,-749.79780488,0.000229,2]
[312792883,1706238631695,-151.68113173,0.000229,2]
[312792884,1706238631705,-125.37901869,0.000229,2]
[312792885,1706238631717,-518.79841674,0.000229,2]
[312792886,1706238631729,-826.72543944,0.000229,2]
[312792913,1706238637407,-19817.88482359,0.000229,2]
[312792914,1706238637421,-1562.40130676,0.000229,2]
[312792915,1706238637468,-358.35896836,0.000229,2]
[312792916,1706238637482,-635.96349285,0.000229,2]
[312792917,1706238637495,-13053.55123357,0.000229,2]
[312792918,1706238637505,-1259.9751834,0.000229,2]
[312792919,1706238637516,-167.52495654,0.000229,2]
[312792920,1706238637526,-277.3904341,0.000229,2]
[312792921,1706238637535,-150.08306563,0.000229,2]
[312792922,1706238637546,-5000.0,0.000229,2]
[312792923,1706238637556,-178.85,0.00022961,2]
[312792924,1706238637567,-14200.34851254,0.00022996,2]
[312792925,1706238637576,-204.84671022,0.00022998,2]
[312792926,1706238637586,-371.01115216,0.00022998,2]
[312792927,1706238637595,-948.53209036,0.00022998,2]
[312792928,1706238637609,-294.31141184,0.00022998,2]
[312792929,1706238637618,-10402.94711209,0.00022999,2]
[312792930,1706238637628,-946.60101861,0.00022999,2]
[312792931,1706238637637,-957323.9456755,0.00023,2]
[312792932,1706238637650,-949.19765927,0.00023,2]
[312792933,1706238637661,-3627.95124371,0.00023,2]
[312792934,1706238637673,-2256.15118353,0.00023,2]
[312792935,1706238637697,-1023.04720235,0.00023,2]
[312792936,1706238637712,-926.63689892,0.00023,2]
[312792937,1706238637756,-3017342.40579307,0.00023,2]
[312792939,1706238637766,-941359.79683272,0.00023,2]
[312793168,1706238639885,-320.7376266,0.00023,2]
[312793170,1706238639897,-13619.96183221,0.00023,2]
[312793172,1706238639909,-403.47060329,0.00023,2]
[312793241,1706238640540,-507.76928861,0.00023,2]
[312793243,1706238640552,-601.05792827,0.00023,2]
[312793245,1706238640563,-527.68167478,0.00023,2]
[312793247,1706238640574,-1612.60638186,0.00023,2]
[312793250,1706238640585,-9245.30500987,0.00023,2]
[312793252,1706238640597,-321.71887248,0.00023,2]
[312793257,1706238640631,-463.53298113,0.00023,2]
[312793259,1706238640643,-36816.4684082,0.00023,2]
[312793261,1706238640654,-312.14320097,0.00023,2]
[312793264,1706238640671,-541.05532265,0.00023,2]
[312793266,1706238640683,-15685.42707926,0.00023,2]
[312793268,1706238640694,-2719.65690231,0.00023,2]
[312793278,1706238640772,-1484.82734202,0.00023,2]
[312793280,1706238640784,-21357.63,0.00023,2]
[312793282,1706238640796,-1357.23902819,0.00023,2]
[312793284,1706238640807,-592.95984649,0.00023,2]
[312793350,1706238642383,-18357.43044557,0.00023,2]
[312793352,1706238642395,-806.54720177,0.00023,2]
[312793353,1706238642411,-1449.54671138,0.00023,2]
[312793354,1706238642445,-293.33957425,0.00023,2]
[312793355,1706238642458,-524.28678313,0.00023,2]
[312793356,1706238642504,-261.76067932,0.00023,2]
[312793357,1706238642518,-696.05985471,0.00023,2]
[312793358,1706238642529,-21011.99395085,0.00023,2]
[312793359,1706238642541,-3337.82693116,0.00023,2]
[312793360,1706238642566,-1856.64204194,0.00023,2]
[312793361,1706238642577,-4183.66205565,0.00023,2]
[312793362,1706238642623,-1515.01903168,0.00023,2]
[312793363,1706238642635,-2499.40594227,0.00023,2]
[312793364,1706238642646,-352.73851809,0.00023,2]
[312793365,1706238642683,-717.67855579,0.00023,2]
[312793366,1706238642694,-723.05702901,0.00023,2]
[312793367,1706238642705,-1771.22584061,0.00023,2]
[312793368,1706238642717,-1321.86465,0.00023,2]
[312793369,1706238642728,-77227.48226894,0.00023,2]
[312793371,1706238643337,-5047.07315616,0.00023,2]
[312793372,1706238643393,-5688.8113681,0.00023,2]
[312793378,1706238645463,-2478.17305776,0.00023,2]
[312793380,1706238645485,-606.72157241,0.00023,2]
[312793382,1706238645496,-18114.94023014,0.00023,2]
[312793384,1706238645508,-2362.80717664,0.00023,2]
[312793386,1706238645519,-140527.11583356,0.00023,2]
[312793389,1706238645544,-685.99217792,0.00023,2]
[312793390,1706238645602,-2801.02534207,0.00023,2]
[312793391,1706238645659,-60000.02715008,0.00023,2]
[312793392,1706238645670,-388.95084273,0.00023,2]
[312793393,1706238645681,-937.01549243,0.00023,2]
[312793400,1706238787552,177.95,0.00029346,120]
[312793403,1706239166176,192.33,0.00021472,2]
[312793404,1706239173786,208.0,0.00020925,2]
[312793405,1706239277683,-154.92028372,0.000227,2]
[312793406,1706239339908,-3034.64577863,0.00022889,2]
[312793407,1706239339934,-1270.46762998,0.0002289,2]
[312793408,1706239339960,-150.0,0.00022899,2]
[312793409,1706239339986,-19809.76,0.000229,2]
[312793410,1706239340013,-67323.0688,0.000229,2]
[312793411,1706239340037,-5000.0,0.000229,2]
[312793412,1706239340067,-151.43359317,0.000229,2]
[312793413,1706239340094,-3692.91483857,0.000229,2]
[312793414,1706239340125,-5540.3348,0.000229,2]
[312793415,1706239340151,-31475.4861,0.000229,2]
[312793416,1706239340177,-828.3166,0.000229,2]
[312793417,1706239340203,-184.92695608,0.000229,2]
[312793418,1706239340229,-2279.77159538,0.000229,2]
[312793419,1706239340256,-315.12409256,0.00022998,2]
[312793420,1706239340281,-231.04821633,0.00022998,2]
[312793421,1706239340310,-499.99,0.00022998,2]
[312793422,1706239340336,-1000.0,0.00022999,2]
[312793423,1706239340365,-19023.66648007,0.00022999,2]
[312793424,1706239340393,-1338189.04451923,0.00023,2]
[312793425,1706239428034,180.11490934,0.00022501,2]
[312793426,1706239731000,182.71,0.00021826,2]
[312793434,1706239831590,-300.0,0.000228,2]
[312793435,1706239831603,-2287.7098,0.000228,2]
[312793436,1706239831615,-131.96021446,0.00022899,2]
[312793437,1706239831630,-22.96006926,0.00022899,2]
[312793438,1706239831641,-541.32808888,0.000229,2]
[312793439,1706239831658,-1712.33381112,0.000229,2]
[312793440,1706239831669,-179.39312683,0.00022999,2]
[312793441,1706239831679,-3342.957719,0.00023,2]
[312793442,1706239831698,-631.19081523,0.00023,2]
[312793443,1706239831711,-9836.68309227,0.00023,2]
[312793444,1706239831724,-52695.01155335,0.00023,2]
[312793445,1706239831811,-346.80171835,0.00023,2]
[312793446,1706239831824,-19905.06102423,0.00023,2]
[312793447,1706239831838,-1021.05941558,0.00023,2]
[312793458,1706239837586,-773.46973501,0.00023,3]
[312793477,1706239837802,-1507.33744974,0.00023,3]
[312793479,1706239837811,-55067.47628774,0.00023,2]
[312793481,1706239837826,-18882.00666777,0.00023,2]
[312793662,1706239840384,-9065.13390444,0.00023,2]
[312793663,1706239840395,-3047.6619117,0.00023,2]
[312793664,1706239840411,-820.48472415,0.00023,2]
[312793665,1706239843924,-4005.77879098,0.00023,2]
[312793666,1706239843936,-2988.67400205,0.00023,2]
[312793667,1706239843948,-10573.59015778,0.00023,2]
[312793668,1706239843957,-150.0,0.00023,2]
[312793669,1706239843967,-1000.0,0.0002344,2]
[312793670,1706239843976,-686.88,0.00023463,2]
[312793671,1706239843985,-177.95,0.00023477,2]
[312793672,1706239843994,-2136.25619907,0.00023624,3]
[312793673,1706239844004,-280.92,0.00023624,2]
[312793674,1706239844014,-325.12,0.00023624,2]
[312793675,1706239844023,-10992.5923766,0.00023637,2]
[312793676,1706239844193,-10382.4876234,0.00023637,2]
[312793677,1706239844203,-1604.08,0.00023647,2]
[312793678,1706239844212,-250.0,0.00023708,2]
[312793679,1706239844221,-386.12,0.00023708,2]
[312793680,1706239844232,-157.79,0.0002386,2]
[312793681,1706239844242,-3574.71,0.0002386,2]
[312793682,1706239844251,-182.71,0.00024089,2]
[312793683,1706239844261,-157.79,0.00024274,2]
[312793684,1706239844270,-167.87,0.00024297,2]
[312793685,1706239844280,-167.72,0.00024297,2]
[312793686,1706239844290,-582.0,0.000244,2]
[312793687,1706239844303,-250.0,0.00024658,2]
[312793688,1706239844312,-157.79,0.00024688,2]
[312793689,1706239844322,-3692.91483855,0.00024891,2]
[312793690,1706239844331,-168.036618,0.00025,2]
[312793691,1706239844341,-202.79836122,0.00025,2]
[312793692,1706239844350,-1589.48873199,0.00025,2]
[312793693,1706239844359,-450.0,0.00025,3]
[312793694,1706239844369,-166.64,0.00025064,2]
[312793695,1706239844379,-157.79,0.00025103,2]
[312793696,1706239844389,-686.88,0.00025107,2]
[312793697,1706239844398,-4135.1954602,0.00025247,2]
[312793698,1706239844408,-2312.17759868,0.00025247,5]
[312793699,1706239844417,-937.37944616,0.00025251,2]
[312793700,1706239844426,-201.33034174,0.00025251,2]
[312793701,1706239844436,-1080.84104196,0.00025251,2]
[312793702,1706239844445,-2421.10978509,0.00025252,2]
[312793703,1706239844455,-1747.8775065,0.00025264,2]
[312793704,1706239844464,-161942.0800692,0.00025281,2]
[312793705,1706239844473,-2271.15811309,0.00025319,2]
[312793706,1706239844482,-7140.01158434,0.00025419,5]
[312793707,1706239844492,-274.40544594,0.0002549,2]
[312793708,1706239844501,-167.87,0.00025633,2]
[312793709,1706239844511,-333.501,0.00025645,2]
[312793710,1706239844520,-860.0,0.00025645,2]
[312793711,1706239844529,-319.0,0.00025645,2]
[312793712,1706239844538,-150.511,0.00025645,2]
[312793713,1706239844548,-3061.758,0.00025645,2]
[312793714,1706239844558,-225.362,0.00025645,2]
[312793715,1706239844568,-2911.0,0.00025645,2]
[312793716,1706239844577,-19743.0,0.00025645,2]
[312793717,1706239844586,-2278.0,0.00025645,2]
[312793718,1706239844596,-2482.307,0.00025645,2]
[312793719,1706239844605,-628.698,0.00025645,2]
[312793720,1706239844614,-839.0,0.00025645,2]
[312793721,1706239844623,-442.238,0.00025645,2]
[312793722,1706239844632,-182.824,0.00025645,2]
[312793723,1706239844641,-216.507,0.00025645,2]
[312793724,1706239844652,-1239.502,0.00025645,2]
[312793725,1706239844662,-1357.324,0.00025645,2]
[312793726,1706239844671,-1949.578,0.00025645,2]
[312793727,1706239844680,-290.33371445,0.00025876,2]
[312793728,1706239844689,-161.3,0.00025939,2]
[312793729,1706239844698,-500.0,0.00026,2]
[312793730,1706239844707,-201.34339566,0.00026,2]
[312793731,1706239844716,-500.0,0.00026,2]
[312793732,1706239844725,-510.84,0.00026,2]
[312793733,1706239844734,-500.0,0.00026,2]
[312793734,1706239844743,-500.0,0.00026,2]
[312793735,1706239844754,-500.0,0.00026,2]
[312793736,1706239844764,-500.0,0.00026,2]
[312793737,1706239844774,-500.0,0.00026,2]
[312793738,1706239844783,-500.0,0.00026,2]
[312793739,1706239844793,-500.0,0.00026,2]
[312793740,1706239844801,-500.0,0.00026,2]
[312793741,1706239844811,-500.0,0.00026,2]
[312793742,1706239844820,-500.0,0.00026,2]
[312793743,1706239844829,-500.0,0.00026,2]
[312793744,1706239844838,-500.0,0.00026,2]
[312793745,1706239844847,-500.0,0.00026,2]
[312793746,1706239844856,-500.0,0.00026,2]
[312793747,1706239844865,-500.0,0.00026,2]
[312793748,1706239844874,-500.0,0.00026,2]
[312793749,1706239844883,-500.0,0.00026,2]
[312793750,1706239844892,-500.0,0.00026,2]
[312793751,1706239844901,-500.0,0.00026,2]
[312793752,1706239844911,-500.0,0.00026,2]
[312793753,1706239844920,-500.0,0.00026,2]
[312793754,1706239844930,-500.0,0.00026,2]
[312793755,1706239844941,-500.0,0.00026,2]
[312793756,1706239844950,-500.0,0.00026,2]
[312793757,1706239844959,-500.0,0.00026,2]
[312793758,1706239844968,-500.0,0.00026,2]
[312793759,1706239844977,-500.0,0.00026,2]
[312793760,1706239844986,-500.0,0.00026,2]
[312793761,1706239844994,-500.0,0.00026,2]
[312793762,1706239845004,-500.0,0.00026,2]
[312793763,1706239845014,-500.0,0.00026,2]
[312793764,1706239845024,-500.0,0.00026,2]
[312793765,1706239845033,-500.0,0.00026,2]
[312793766,1706239845043,-500.0,0.00026,2]
[312793767,1706239845053,-500.0,0.00026,2]
[312793768,1706239845062,-500.0,0.00026,2]
[312793769,1706239845074,-500.0,0.00026,2]
[312793770,1706239845083,-500.0,0.00026,2]
[312793771,1706239845093,-500.0,0.00026,2]
[312793772,1706239845101,-500.0,0.00026,2]
[312793773,1706239845111,-500.0,0.00026,2]
[312793774,1706239845120,-500.0,0.00026,2]
[312793775,1706239845130,-409.18,0.00026,2]
[312793776,1706239845141,-500.0,0.00026,2]
[312793777,1706239845152,-344.0,0.00026,2]
[312793778,1706239845161,-1000.0,0.00026,2]
[312793779,1706239845170,-208.0,0.0002611,2]